[Event "Titled Tuesday Blitz October 11 Late 2022"]
[White "Sibilio, Mario"]
[Black "Ibadov, Dashgyn"]
[WhiteFideId "800422"]
[BlackFideId "24107514"]
[WhiteElo "2296"]
[BlackElo "2208"]
[Result "0-1"]
[Round "06"]
[TimeControl "180+1"]
[Date "2022.10.12"]
[WhiteClock "0:00:02"]
[BlackClock "0:00:14"]

1. e3 {[%clk 0:02:53]}  d5 {[%clk 0:02:54]} 2. Nf3 {[%clk 0:02:47]}  Nf6 {[%clk 0:02:54]} 3. b3 {[%clk 0:02:46]}  c5 {[%clk 0:02:54]} 4. Bb2 {[%clk 0:02:41]}  Nc6 {[%clk 0:02:53]} 5. Bb5 {[%clk 0:02:39]}  Bd7 {[%clk 0:02:48]} 6. O-O {[%clk 0:02:36]}  e6 {[%clk 0:02:46]} 7. Bxc6 {[%clk 0:02:29]}  Bxc6 {[%clk 0:02:47]} 8. Ne5 {[%clk 0:02:29]}  Qc7 {[%clk 0:02:46]} 9. f4 {[%clk 0:02:25]}  Bd6 {[%clk 0:02:33]} 10. Qf3 {[%clk 0:02:09]}  O-O-O {[%clk 0:02:23]} 11. d3 {[%clk 0:02:06]}  Kb8 {[%clk 0:02:14]} 12. Nd2 {[%clk 0:01:58]}  Rhg8 {[%clk 0:02:13]} 13. h3 {[%clk 0:01:46]}  Rdf8 {[%clk 0:01:41]} 14. c4 {[%clk 0:01:36]}  Nd7 {[%clk 0:01:36]} 15. Nxc6+ {[%clk 0:01:33]}  Qxc6 {[%clk 0:01:37]} 16. Rac1 {[%clk 0:01:32]}  g5 {[%clk 0:01:27]} 17. f5 {[%clk 0:01:20]}  Ne5 {[%clk 0:01:25]} 18. Qe2 {[%clk 0:01:14]}  g4 {[%clk 0:01:21]} 19. Bxe5 {[%clk 0:01:07]}  Bxe5 {[%clk 0:01:20]} 20. hxg4 {[%clk 0:01:06]}  h5 {[%clk 0:01:19]} 21. Nf3 {[%clk 0:00:54]}  Bc7 {[%clk 0:01:08]} 22. fxe6 {[%clk 0:00:52]}  hxg4 {[%clk 0:00:57]} 23. Nd2 {[%clk 0:00:47]}  Qd6 {[%clk 0:00:45]} 24. Rf4 {[%clk 0:00:40]}  Qxe6 {[%clk 0:00:40]} 25. cxd5 {[%clk 0:00:37]}  Qxd5 {[%clk 0:00:25]} 26. Ne4 {[%clk 0:00:26]}  Bxf4 {[%clk 0:00:23]} 27. exf4 {[%clk 0:00:25]}  Qd4+ {[%clk 0:00:19]} 28. Qf2 {[%clk 0:00:25]}  Qxf2+ {[%clk 0:00:17]} 29. Kxf2 {[%clk 0:00:25]}  Rd8 {[%clk 0:00:12]} 30. Nxc5 {[%clk 0:00:23]}  b6 {[%clk 0:00:11]} 31. Na6+ {[%clk 0:00:21]}  Kb7 {[%clk 0:00:11]} 32. Nb4 {[%clk 0:00:20]}  a5 {[%clk 0:00:12]} 33. Nc2 {[%clk 0:00:18]}  Rxd3 {[%clk 0:00:12]} 34. Ne3 {[%clk 0:00:18]}  Rd2+ {[%clk 0:00:11]} 35. Kg3 {[%clk 0:00:18]}  Rxa2 {[%clk 0:00:10]} 36. Nd5 {[%clk 0:00:17]}  Rd2 {[%clk 0:00:06]} 37. Nf6 {[%clk 0:00:15]}  Rgd8 {[%clk 0:00:06]} 38. Nxg4 {[%clk 0:00:13]}  R2d3+ {[%clk 0:00:06]} 39. Kh4 {[%clk 0:00:13]}  Rxb3 {[%clk 0:00:07]} 40. Ne5 {[%clk 0:00:13]}  f6 {[%clk 0:00:04]} 41. Ng6 {[%clk 0:00:11]}  a4 {[%clk 0:00:04]} 42. g4 {[%clk 0:00:09]}  a3 {[%clk 0:00:05]} 43. g5 {[%clk 0:00:06]}  fxg5+ {[%clk 0:00:06]} 44. Kxg5 {[%clk 0:00:05]}  a2 {[%clk 0:00:06]} 45. Ra1 {[%clk 0:00:05]}  Rd2 {[%clk 0:00:07]} 46. f5 {[%clk 0:00:04]}  Rb1 {[%clk 0:00:07]} 47. Rxa2 {[%clk 0:00:03]}  Rxa2 {[%clk 0:00:08]} 48. f6 {[%clk 0:00:03]}  Rg2+ {[%clk 0:00:09]} 49. Kh6 {[%clk 0:00:03]}  Rxg6+ {[%clk 0:00:10]} 50. Kxg6 {[%clk 0:00:02]}  Rf1 {[%clk 0:00:10]} 51. f7 {[%clk 0:00:02]}  b5 {[%clk 0:00:11]} 52. Kg7 {[%clk 0:00:02]}  b4 {[%clk 0:00:10]} 53. f8=Q {[%clk 0:00:01]}  Rxf8 {[%clk 0:00:10]} 54. Kxf8 {[%clk 0:00:01]}  b3 {[%clk 0:00:11]} 55. Ke7 {[%clk 0:00:02]}  b2 {[%clk 0:00:12]} 56. Ke6 {[%clk 0:00:03]}  b1=Q {[%clk 0:00:13]} 57. Kf6 {[%clk 0:00:03]}  Qe4 {[%clk 0:00:13]} 58. Kf7 {[%clk 0:00:02]}  Kc6 {[%clk 0:00:14]} 0-1


[Site "https://www.chess.com"]

[Event "Titled Tuesday Blitz October 11 Late 2022"]
[White "Sowul, Bartosz"]
[Black "Melikyan, Gnel"]
[WhiteFideId "1137590"]
[BlackFideId "54109990"]
[WhiteElo "2188"]
[BlackElo "2138"]
[Result "1-0"]
[Round "06"]
[TimeControl "180+1"]
[Date "2022.10.12"]
[WhiteClock "0:02:13"]
[BlackClock "0:02:27"]

1. e4 {[%clk 0:03:00]}  c6 {[%clk 0:03:00]} 2. d4 {[%clk 0:03:01]}  d5 {[%clk 0:02:59]} 3. exd5 {[%clk 0:03:01]}  cxd5 {[%clk 0:02:58]} 4. Nf3 {[%clk 0:03:02]}  Nf6 {[%clk 0:02:58]} 5. Ne5 {[%clk 0:03:02]}  Nbd7 {[%clk 0:02:57]} 6. Bb5 {[%clk 0:02:53]}  e6 {[%clk 0:02:58]} 7. O-O {[%clk 0:02:48]}  a6 {[%clk 0:02:58]} 8. Be2 {[%clk 0:02:46]}  Nxe5 {[%clk 0:02:57]} 9. dxe5 {[%clk 0:02:47]}  Ne4 {[%clk 0:02:57]} 10. Be3 {[%clk 0:02:41]}  Qc7 {[%clk 0:02:57]} 11. c4 {[%clk 0:02:18]}  dxc4 {[%clk 0:02:41]} 12. Qd4 {[%clk 0:02:17]}  Qc6 {[%clk 0:02:27]} 13. Bf3 {[%clk 0:02:13]} 1-0


[Site "https://www.chess.com"]

[Event "Titled Tuesday Blitz October 11 Late 2022"]
[White "Sztokbant, Bernardo Vainzoff"]
[Black "Mirzoev, Azer"]
[WhiteFideId "2115956"]
[BlackFideId "13400304"]
[WhiteElo "2477"]
[BlackElo "2645"]
[Result "0-1"]
[Round "06"]
[TimeControl "180+1"]
[Date "2022.10.12"]
[WhiteClock "0:00:19"]
[BlackClock "0:01:38"]

1. e4 {[%clk 0:03:00]}  Nf6 {[%clk 0:03:00]} 2. Nc3 {[%clk 0:02:56]}  d5 {[%clk 0:02:55]} 3. e5 {[%clk 0:02:55]}  Nfd7 {[%clk 0:02:55]} 4. d4 {[%clk 0:02:52]}  e6 {[%clk 0:02:55]} 5. f4 {[%clk 0:02:52]}  c5 {[%clk 0:02:55]} 6. Nf3 {[%clk 0:02:53]}  Nc6 {[%clk 0:02:56]} 7. Be3 {[%clk 0:02:53]}  Qb6 {[%clk 0:02:56]} 8. Qd2 {[%clk 0:02:39]}  Qxb2 {[%clk 0:02:48]} 9. Rb1 {[%clk 0:02:39]}  Qa3 {[%clk 0:02:48]} 10. Nb5 {[%clk 0:02:37]}  Qxa2 {[%clk 0:02:47]} 11. Rc1 {[%clk 0:02:04]}  Rb8 {[%clk 0:02:45]} 12. c4 {[%clk 0:01:21]}  Qxd2+ {[%clk 0:02:33]} 13. Bxd2 {[%clk 0:01:05]}  a6 {[%clk 0:02:28]} 14. dxc5 {[%clk 0:00:40]}  axb5 {[%clk 0:02:25]} 15. cxb5 {[%clk 0:00:39]}  Bxc5 {[%clk 0:02:19]} 16. bxc6 {[%clk 0:00:39]}  bxc6 {[%clk 0:02:19]} 17. Bd3 {[%clk 0:00:37]}  Ke7 {[%clk 0:02:10]} 18. Ke2 {[%clk 0:00:38]}  Rb2 {[%clk 0:01:57]} 19. Rc2 {[%clk 0:00:38]}  Rxc2 {[%clk 0:01:56]} 20. Bxc2 {[%clk 0:00:38]}  Ba6+ {[%clk 0:01:57]} 21. Bd3 {[%clk 0:00:38]}  Bxd3+ {[%clk 0:01:56]} 22. Kxd3 {[%clk 0:00:38]}  Ra8 {[%clk 0:01:56]} 23. Rb1 {[%clk 0:00:38]}  Ra7 {[%clk 0:01:47]} 24. h4 {[%clk 0:00:25]}  h5 {[%clk 0:01:46]} 25. Ng5 {[%clk 0:00:23]}  f6 {[%clk 0:01:44]} 26. exf6+ {[%clk 0:00:22]}  gxf6 {[%clk 0:01:44]} 27. Nf3 {[%clk 0:00:22]}  e5 {[%clk 0:01:43]} 28. fxe5 {[%clk 0:00:22]}  fxe5 {[%clk 0:01:43]} 29. Bg5+ {[%clk 0:00:22]}  Ke6 {[%clk 0:01:41]} 30. Ke2 {[%clk 0:00:20]}  Ra2+ {[%clk 0:01:40]} 31. Kf1 {[%clk 0:00:19]}  e4 {[%clk 0:01:38]} 0-1


[Site "https://www.chess.com"]

[Event "Titled Tuesday Blitz October 11 Late 2022"]
[White "Tarnowska, Aleksandra"]
[Black "Balkum, Alexander"]
[WhiteFideId "1180967"]
[BlackFideId "2005069"]
[WhiteElo "1776"]
[BlackElo "2336"]
[Result "1-0"]
[Round "06"]
[TimeControl "180+1"]
[Date "2022.10.12"]
[WhiteClock "0:00:06"]
[BlackClock "0:00:02"]

1. e4 {[%clk 0:03:00]}  c5 {[%clk 0:02:59]} 2. Nf3 {[%clk 0:03:01]}  d6 {[%clk 0:02:59]} 3. Bb5+ {[%clk 0:03:01]}  Nc6 {[%clk 0:02:58]} 4. O-O {[%clk 0:03:01]}  Bd7 {[%clk 0:02:56]} 5. c3 {[%clk 0:03:00]}  a6 {[%clk 0:02:52]} 6. Ba4 {[%clk 0:03:01]}  Nf6 {[%clk 0:02:50]} 7. Re1 {[%clk 0:03:00]}  e6 {[%clk 0:02:30]} 8. d3 {[%clk 0:02:49]}  Be7 {[%clk 0:02:29]} 9. Nbd2 {[%clk 0:02:49]}  O-O {[%clk 0:02:29]} 10. Nf1 {[%clk 0:02:49]}  b5 {[%clk 0:02:25]} 11. Bc2 {[%clk 0:02:48]}  h6 {[%clk 0:02:16]} 12. Ng3 {[%clk 0:02:47]}  Re8 {[%clk 0:01:50]} 13. h3 {[%clk 0:02:38]}  e5 {[%clk 0:01:49]} 14. d4 {[%clk 0:02:20]}  Bf8 {[%clk 0:01:43]} 15. dxe5 {[%clk 0:01:43]}  dxe5 {[%clk 0:01:36]} 16. Be3 {[%clk 0:01:42]}  Qc7 {[%clk 0:01:30]} 17. Qe2 {[%clk 0:01:42]}  Be6 {[%clk 0:01:17]} 18. b3 {[%clk 0:01:34]}  b4 {[%clk 0:00:56]} 19. c4 {[%clk 0:01:21]}  Nd4 {[%clk 0:00:54]} 20. Bxd4 {[%clk 0:01:11]}  cxd4 {[%clk 0:00:54]} 21. Nh4 {[%clk 0:01:07]}  a5 {[%clk 0:00:50]} 22. Nhf5 {[%clk 0:01:04]}  a4 {[%clk 0:00:50]} 23. Qf3 {[%clk 0:00:49]}  Bxf5 {[%clk 0:00:35]} 24. Nxf5 {[%clk 0:00:48]}  Ra6 {[%clk 0:00:35]} 25. Rac1 {[%clk 0:00:27]}  axb3 {[%clk 0:00:30]} 26. Bxb3 {[%clk 0:00:27]}  Qc5 {[%clk 0:00:29]} 27. Rcd1 {[%clk 0:00:23]}  Rea8 {[%clk 0:00:24]} 28. Qg3 {[%clk 0:00:23]}  Kh8 {[%clk 0:00:24]} 29. Qh4 {[%clk 0:00:20]}  Kh7 {[%clk 0:00:22]} 30. g4 {[%clk 0:00:20]}  Ng8 {[%clk 0:00:17]} 31. g5 {[%clk 0:00:19]}  Rb6 {[%clk 0:00:15]} 32. gxh6 {[%clk 0:00:18]}  Nxh6 {[%clk 0:00:15]} 33. Kh2 {[%clk 0:00:17]}  Raa6 {[%clk 0:00:14]} 34. Rg1 {[%clk 0:00:16]}  Rg6 {[%clk 0:00:12]} 35. Qh5 {[%clk 0:00:11]}  Qb6 {[%clk 0:00:08]} 36. Rg3 {[%clk 0:00:11]}  Rxg3 {[%clk 0:00:08]} 37. fxg3 {[%clk 0:00:10]}  Qg6 {[%clk 0:00:08]} 38. Qxg6+ {[%clk 0:00:09]}  Rxg6 {[%clk 0:00:09]} 39. Rf1 {[%clk 0:00:08]}  Nxf5 {[%clk 0:00:07]} 40. exf5 {[%clk 0:00:08]}  Rc6 {[%clk 0:00:07]} 41. Kg2 {[%clk 0:00:05]}  f6 {[%clk 0:00:07]} 42. Kf3 {[%clk 0:00:05]}  Rc5 {[%clk 0:00:05]} 43. Ke4 {[%clk 0:00:05]}  Ra5 {[%clk 0:00:06]} 44. Rd1 {[%clk 0:00:05]}  Kh6 {[%clk 0:00:05]} 45. h4 {[%clk 0:00:04]}  Kh5 {[%clk 0:00:05]} 46. Rg1 {[%clk 0:00:04]}  Kh6 {[%clk 0:00:05]} 47. g4 {[%clk 0:00:04]}  Be7 {[%clk 0:00:04]} 48. Rg2 {[%clk 0:00:04]}  Kh7 {[%clk 0:00:04]} 49. g5 {[%clk 0:00:04]}  fxg5 {[%clk 0:00:04]} 50. hxg5 {[%clk 0:00:05]}  g6 {[%clk 0:00:04]} 51. f6 {[%clk 0:00:05]}  Bf8 {[%clk 0:00:05]} 52. Rh2+ {[%clk 0:00:05]}  Kg8 {[%clk 0:00:02]} 53. c5# {[%clk 0:00:06]} 1-0


[Site "https://www.chess.com"]

[Event "Titled Tuesday Blitz October 11 Late 2022"]
[White "Thiel, Thomas"]
[Black "Shaik Sumer Arsh"]
[WhiteFideId "4615964"]
[BlackFideId "45020000"]
[WhiteElo "2306"]
[BlackElo "2190"]
[Result "0-1"]
[Round "06"]
[TimeControl "180+1"]
[Date "2022.10.12"]
[WhiteClock "0:00:47"]
[BlackClock "0:01:22"]

1. e4 {[%clk 0:03:00]}  e5 {[%clk 0:02:59]} 2. Nf3 {[%clk 0:02:59]}  Nc6 {[%clk 0:02:59]} 3. d4 {[%clk 0:02:58]}  exd4 {[%clk 0:02:59]} 4. Nxd4 {[%clk 0:02:58]}  Nf6 {[%clk 0:03:00]} 5. Nxc6 {[%clk 0:02:58]}  bxc6 {[%clk 0:03:01]} 6. e5 {[%clk 0:02:58]}  Qe7 {[%clk 0:03:01]} 7. Qe2 {[%clk 0:02:58]}  Nd5 {[%clk 0:03:02]} 8. h4 {[%clk 0:02:58]}  Qe6 {[%clk 0:03:01]} 9. g3 {[%clk 0:02:56]}  Be7 {[%clk 0:02:54]} 10. Bh3 {[%clk 0:02:50]}  f5 {[%clk 0:02:39]} 11. c4 {[%clk 0:02:40]}  Nb6 {[%clk 0:02:36]} 12. Nd2 {[%clk 0:02:37]}  O-O {[%clk 0:02:35]} 13. g4 {[%clk 0:01:56]}  Bb4 {[%clk 0:01:51]} 14. gxf5 {[%clk 0:01:49]}  Qxc4 {[%clk 0:01:51]} 15. Qxc4+ {[%clk 0:01:48]}  Nxc4 {[%clk 0:01:51]} 16. f4 {[%clk 0:01:43]}  Ne3 {[%clk 0:01:49]} 17. Ke2 {[%clk 0:01:39]}  Nxf5 {[%clk 0:01:49]} 18. Nf3 {[%clk 0:01:35]}  Ba6+ {[%clk 0:01:49]} 19. Kd1 {[%clk 0:01:23]}  Ng3 {[%clk 0:01:44]} 20. Rg1 {[%clk 0:01:04]}  Be2+ {[%clk 0:01:29]} 21. Kc2 {[%clk 0:01:04]}  Bxf3 {[%clk 0:01:30]} 22. Rxg3 {[%clk 0:01:03]}  Be4+ {[%clk 0:01:31]} 23. Kb3 {[%clk 0:00:55]}  Rab8 {[%clk 0:01:31]} 24. Kc4 {[%clk 0:00:55]}  d5+ {[%clk 0:01:28]} 25. exd6 {[%clk 0:00:47]}  Bxd6 {[%clk 0:01:22]} 0-1


[Site "https://www.chess.com"]

[Event "Titled Tuesday Blitz October 11 Late 2022"]
[White "Timmermans, Mark"]
[Black "Kouskoutis, Georgios-Alexandros"]
[WhiteFideId "1026399"]
[BlackFideId "4234049"]
[WhiteElo "2460"]
[BlackElo "2187"]
[Result "1-0"]
[Round "06"]
[TimeControl "180+1"]
[Date "2022.10.11"]
[WhiteClock "0:01:29"]
[BlackClock "0:00:02"]

1. Nf3 {[%clk 0:03:00]}  d5 {[%clk 0:02:59]} 2. c4 {[%clk 0:02:59]}  d4 {[%clk 0:02:59]} 3. b4 {[%clk 0:02:59]}  f6 {[%clk 0:02:59]} 4. Qa4+ {[%clk 0:02:40]}  c6 {[%clk 0:02:54]} 5. e3 {[%clk 0:02:34]}  e5 {[%clk 0:02:34]} 6. c5 {[%clk 0:02:34]}  dxe3 {[%clk 0:02:19]} 7. fxe3 {[%clk 0:02:34]}  e4 {[%clk 0:01:57]} 8. Nd4 {[%clk 0:02:32]}  f5 {[%clk 0:01:55]} 9. Bc4 {[%clk 0:02:27]}  Nf6 {[%clk 0:01:55]} 10. O-O {[%clk 0:02:20]}  g6 {[%clk 0:01:54]} 11. Bb2 {[%clk 0:02:19]}  Bg7 {[%clk 0:01:52]} 12. Na3 {[%clk 0:02:00]}  a6 {[%clk 0:01:39]} 13. Qb3 {[%clk 0:01:58]}  Qe7 {[%clk 0:01:37]} 14. Be6 {[%clk 0:01:53]}  Bxe6 {[%clk 0:01:11]} 15. Nxe6 {[%clk 0:01:54]}  Bh6 {[%clk 0:00:55]} 16. Bxf6 {[%clk 0:01:50]}  Qxf6 {[%clk 0:00:56]} 17. Nc7+ {[%clk 0:01:51]}  Ke7 {[%clk 0:00:38]} 18. Nxa8 {[%clk 0:01:50]}  Nd7 {[%clk 0:00:38]} 19. Nb6 {[%clk 0:01:49]}  Nxb6 {[%clk 0:00:32]} 20. cxb6 {[%clk 0:01:49]}  Rd8 {[%clk 0:00:30]} 21. Nc4 {[%clk 0:01:48]}  Rd3 {[%clk 0:00:29]} 22. Qb2 {[%clk 0:01:48]}  Qxb2 {[%clk 0:00:29]} 23. Nxb2 {[%clk 0:01:49]}  Rxd2 {[%clk 0:00:29]} 24. Nc4 {[%clk 0:01:49]}  Rd5 {[%clk 0:00:11]} 25. a4 {[%clk 0:01:45]}  Ke6 {[%clk 0:00:11]} 26. Rfd1 {[%clk 0:01:44]}  Bg7 {[%clk 0:00:07]} 27. Rac1 {[%clk 0:01:42]}  Bh6 {[%clk 0:00:05]} 28. Kf2 {[%clk 0:01:41]}  Bf8 {[%clk 0:00:06]} 29. Rxd5 {[%clk 0:01:40]}  cxd5 {[%clk 0:00:06]} 30. Na5 {[%clk 0:01:40]}  Bxb4 {[%clk 0:00:07]} 31. Nxb7 {[%clk 0:01:40]}  d4 {[%clk 0:00:05]} 32. Nc5+ {[%clk 0:01:31]}  Kd5 {[%clk 0:00:02]} 33. b7 {[%clk 0:01:30]}  dxe3+ {[%clk 0:00:02]} 34. Ke2 {[%clk 0:01:29]} 1-0


[Site "https://www.chess.com"]

[Event "Titled Tuesday Blitz October 11 Late 2022"]
[White "Tomaszewski, Kacper"]
[Black "Slugin, Sergey"]
[WhiteFideId "1127373"]
[BlackFideId "4122569"]
[WhiteElo "2571"]
[BlackElo "2736"]
[Result "1-0"]
[Round "06"]
[TimeControl "180+1"]
[Date "2022.10.12"]
[WhiteClock "0:00:06"]
[BlackClock "0:00:28"]

1. Nf3 {[%clk 0:03:00]}  Nf6 {[%clk 0:03:00]} 2. c4 {[%clk 0:03:00]}  e6 {[%clk 0:03:00]} 3. d4 {[%clk 0:02:57]}  d5 {[%clk 0:03:01]} 4. Nc3 {[%clk 0:02:55]}  Nbd7 {[%clk 0:03:01]} 5. cxd5 {[%clk 0:02:51]}  exd5 {[%clk 0:03:02]} 6. Bg5 {[%clk 0:02:51]}  Bb4 {[%clk 0:03:03]} 7. Rc1 {[%clk 0:02:49]}  c6 {[%clk 0:02:58]} 8. a3 {[%clk 0:02:45]}  Bxc3+ {[%clk 0:02:50]} 9. Rxc3 {[%clk 0:02:38]}  h6 {[%clk 0:02:51]} 10. Bh4 {[%clk 0:02:30]}  g5 {[%clk 0:02:51]} 11. Bg3 {[%clk 0:02:30]}  Ne4 {[%clk 0:02:51]} 12. Rd3 {[%clk 0:02:20]}  h5 {[%clk 0:02:47]} 13. h4 {[%clk 0:02:00]}  Nxg3 {[%clk 0:02:26]} 14. fxg3 {[%clk 0:02:01]}  g4 {[%clk 0:02:23]} 15. Nd2 {[%clk 0:02:01]}  Qc7 {[%clk 0:02:16]} 16. e4 {[%clk 0:01:52]}  dxe4 {[%clk 0:02:00]} 17. Nxe4 {[%clk 0:01:53]}  Kf8 {[%clk 0:02:00]} 18. Be2 {[%clk 0:01:50]}  Nb6 {[%clk 0:01:52]} 19. O-O {[%clk 0:01:48]}  Be6 {[%clk 0:01:53]} 20. Ng5 {[%clk 0:01:34]}  Bd5 {[%clk 0:01:53]} 21. Re3 {[%clk 0:01:26]}  Kg7 {[%clk 0:01:48]} 22. Qc2 {[%clk 0:01:12]}  f6 {[%clk 0:01:24]} 23. Qf5 {[%clk 0:01:04]}  Raf8 {[%clk 0:01:24]} 24. Bxg4 {[%clk 0:00:47]}  Kh6 {[%clk 0:00:57]} 25. Bxh5 {[%clk 0:00:40]}  Rhg8 {[%clk 0:00:54]} 26. Ne6 {[%clk 0:00:23]}  Bxe6 {[%clk 0:00:47]} 27. Rxe6 {[%clk 0:00:24]}  Nd5 {[%clk 0:00:46]} 28. g4 {[%clk 0:00:18]}  Qg3 {[%clk 0:00:40]} 29. g5+ {[%clk 0:00:18]}  Kxh5 {[%clk 0:00:36]} 30. Qh7+ {[%clk 0:00:14]}  Kg4 {[%clk 0:00:37]} 31. Re4+ {[%clk 0:00:12]}  Nf4 {[%clk 0:00:37]} 32. Rexf4+ {[%clk 0:00:12]}  Qxf4 {[%clk 0:00:38]} 33. Rxf4+ {[%clk 0:00:10]}  Kxf4 {[%clk 0:00:39]} 34. g6 {[%clk 0:00:10]}  Re8 {[%clk 0:00:31]} 35. Qh5 {[%clk 0:00:06]}  Re1+ {[%clk 0:00:28]} 36. Kf2 {[%clk 0:00:06]}  Rge8 {[%clk 0:00:28]} 37. Qf3# {[%clk 0:00:06]} 1-0


[Site "https://www.chess.com"]

[Event "Titled Tuesday Blitz October 11 Late 2022"]
[White "Torres Boch, Jose Francisco"]
[Black "Przybylski, Wojciech"]
[WhiteFideId "2278383"]
[BlackFideId "1117599"]
[WhiteElo "2073"]
[BlackElo "2221"]
[Result "0-1"]
[Round "06"]
[TimeControl "180+1"]
[Date "2022.10.12"]
[WhiteClock "0:02:10"]
[BlackClock "0:02:14"]

1. e4 {[%clk 0:02:56]}  e5 {[%clk 0:02:58]} 2. Nf3 {[%clk 0:02:56]}  Nf6 {[%clk 0:02:58]} 3. Nxe5 {[%clk 0:02:52]}  d6 {[%clk 0:02:58]} 4. Nxf7 {[%clk 0:02:52]}  Kxf7 {[%clk 0:02:58]} 5. Bc4+ {[%clk 0:02:51]}  Be6 {[%clk 0:02:57]} 6. Bxe6+ {[%clk 0:02:49]}  Kxe6 {[%clk 0:02:58]} 7. O-O {[%clk 0:02:44]}  c5 {[%clk 0:02:55]} 8. d4 {[%clk 0:02:43]}  cxd4 {[%clk 0:02:53]} 9. Qxd4 {[%clk 0:02:43]}  Nc6 {[%clk 0:02:53]} 10. Qc4+ {[%clk 0:02:41]}  d5 {[%clk 0:02:49]} 11. exd5+ {[%clk 0:02:39]}  Qxd5 {[%clk 0:02:48]} 12. Re1+ {[%clk 0:02:39]}  Kf7 {[%clk 0:02:48]} 13. Qe2 {[%clk 0:02:26]}  Bb4 {[%clk 0:02:45]} 14. c3 {[%clk 0:02:23]}  Rhe8 {[%clk 0:02:43]} 15. Be3 {[%clk 0:02:22]}  Bc5 {[%clk 0:02:39]} 16. Na3 {[%clk 0:02:19]}  Bxe3 {[%clk 0:02:36]} 17. fxe3 {[%clk 0:02:20]}  Rad8 {[%clk 0:02:28]} 18. Rad1 {[%clk 0:02:19]}  Qe4 {[%clk 0:02:26]} 19. Rxd8 {[%clk 0:02:15]}  Rxd8 {[%clk 0:02:23]} 20. Qb5 {[%clk 0:02:16]}  Ne5 {[%clk 0:02:20]} 21. Qb3+ {[%clk 0:02:11]}  Kg6 {[%clk 0:02:15]} 22. Nb5 {[%clk 0:02:10]}  Rd2 {[%clk 0:02:14]} 0-1


[Site "https://www.chess.com"]

[Event "Titled Tuesday Blitz October 11 Late 2022"]
[White "Vazquez, Guillermo"]
[Black "Nakamura, Hikaru"]
[WhiteFideId "3702308"]
[BlackFideId "2016192"]
[WhiteElo "2543"]
[BlackElo "2909"]
[Result "0-1"]
[Round "06"]
[TimeControl "180+1"]
[Date "2022.10.11"]
[WhiteClock "0:00:04"]
[BlackClock "0:01:07"]

1. b3 {[%clk 0:03:00]}  d6 {[%clk 0:02:54]} 2. Bb2 {[%clk 0:03:00]}  c5 {[%clk 0:02:54]} 3. c4 {[%clk 0:02:58]}  e5 {[%clk 0:02:54]} 4. Nc3 {[%clk 0:02:57]}  g6 {[%clk 0:02:54]} 5. g3 {[%clk 0:02:58]}  Bg7 {[%clk 0:02:54]} 6. Bg2 {[%clk 0:02:59]}  Ne7 {[%clk 0:02:55]} 7. d3 {[%clk 0:02:56]}  Nbc6 {[%clk 0:02:55]} 8. Nf3 {[%clk 0:02:57]}  h6 {[%clk 0:02:55]} 9. O-O {[%clk 0:02:57]}  Be6 {[%clk 0:02:55]} 10. a3 {[%clk 0:02:53]}  O-O {[%clk 0:02:55]} 11. Nd2 {[%clk 0:02:52]}  Rc8 {[%clk 0:02:32]} 12. b4 {[%clk 0:02:37]}  b6 {[%clk 0:02:31]} 13. Nd5 {[%clk 0:02:30]}  f5 {[%clk 0:02:24]} 14. e3 {[%clk 0:02:26]}  Rf7 {[%clk 0:02:21]} 15. bxc5 {[%clk 0:02:12]}  dxc5 {[%clk 0:02:19]} 16. e4 {[%clk 0:02:12]}  f4 {[%clk 0:02:18]} 17. a4 {[%clk 0:01:38]}  Qd7 {[%clk 0:02:14]} 18. Bc3 {[%clk 0:01:35]}  h5 {[%clk 0:02:03]} 19. a5 {[%clk 0:01:33]}  bxa5 {[%clk 0:02:03]} 20. Nf3 {[%clk 0:01:28]}  Bg4 {[%clk 0:02:01]} 21. Qd2 {[%clk 0:01:17]}  Bxf3 {[%clk 0:01:55]} 22. Bxf3 {[%clk 0:01:16]}  Rcf8 {[%clk 0:01:51]} 23. Kg2 {[%clk 0:01:12]}  a4 {[%clk 0:01:47]} 24. Qd1 {[%clk 0:01:06]}  fxg3 {[%clk 0:01:27]} 25. fxg3 {[%clk 0:01:06]}  h4 {[%clk 0:01:28]} 26. gxh4 {[%clk 0:00:56]}  Nxd5 {[%clk 0:01:18]} 27. cxd5 {[%clk 0:00:55]}  Nd4 {[%clk 0:01:17]} 28. Bxd4 {[%clk 0:00:49]}  exd4 {[%clk 0:01:15]} 29. Bg4 {[%clk 0:00:13]}  Rxf1 {[%clk 0:01:14]} 30. Bxd7 {[%clk 0:00:13]}  R8f2+ {[%clk 0:01:14]} 31. Kh3 {[%clk 0:00:08]}  Rxd1 {[%clk 0:01:14]} 32. Rxd1 {[%clk 0:00:09]}  a3 {[%clk 0:01:13]} 33. d6 {[%clk 0:00:08]}  Kf7 {[%clk 0:01:13]} 34. Bb5 {[%clk 0:00:04]}  Be5 {[%clk 0:01:07]} 35. Bc6 {[%clk 0:00:04]} 0-1


[Site "https://www.chess.com"]

[Event "Titled Tuesday Blitz October 11 Late 2022"]
[White "Vlassov, Nikolai"]
[Black "Kravtsiv, Martyn"]
[WhiteFideId "4103360"]
[BlackFideId "14113147"]
[WhiteElo "2324"]
[BlackElo "2694"]
[Result "0-1"]
[Round "06"]
[TimeControl "180+1"]
[Date "2022.10.11"]
[WhiteClock "0:00:04"]
[BlackClock "0:01:03"]

1. e4 {[%clk 0:03:00]}  e5 {[%clk 0:02:59]} 2. Bc4 {[%clk 0:03:00]}  Nf6 {[%clk 0:02:58]} 3. d3 {[%clk 0:03:00]}  Nc6 {[%clk 0:02:56]} 4. Nf3 {[%clk 0:02:51]}  Bc5 {[%clk 0:02:55]} 5. Bg5 {[%clk 0:02:50]}  h6 {[%clk 0:02:53]} 6. Bh4 {[%clk 0:02:50]}  d6 {[%clk 0:02:50]} 7. Nc3 {[%clk 0:02:50]}  g5 {[%clk 0:02:45]} 8. Bg3 {[%clk 0:02:49]}  Na5 {[%clk 0:02:43]} 9. Nd2 {[%clk 0:02:48]}  Nxc4 {[%clk 0:02:31]} 10. Nxc4 {[%clk 0:02:47]}  Be6 {[%clk 0:02:32]} 11. h4 {[%clk 0:02:42]}  g4 {[%clk 0:02:21]} 12. h5 {[%clk 0:02:41]}  Qd7 {[%clk 0:02:18]} 13. Ne3 {[%clk 0:02:38]}  Rg8 {[%clk 0:02:18]} 14. Qd2 {[%clk 0:02:25]}  Rg5 {[%clk 0:02:17]} 15. O-O-O {[%clk 0:02:21]}  Nxh5 {[%clk 0:02:06]} 16. Bh4 {[%clk 0:02:17]}  Rg6 {[%clk 0:02:06]} 17. Ne2 {[%clk 0:01:45]}  Bxa2 {[%clk 0:01:47]} 18. d4 {[%clk 0:01:30]}  exd4 {[%clk 0:01:47]} 19. Nxd4 {[%clk 0:01:30]}  Qa4 {[%clk 0:01:46]} 20. Qc3 {[%clk 0:00:59]}  Nf4 {[%clk 0:01:23]} 21. Rhe1 {[%clk 0:00:32]}  Kd7 {[%clk 0:01:09]} 22. e5 {[%clk 0:00:30]}  Bb4 {[%clk 0:01:09]} 23. Qxb4 {[%clk 0:00:08]}  Qxb4 {[%clk 0:01:08]} 24. exd6 {[%clk 0:00:07]}  Rxd6 {[%clk 0:01:07]} 25. Nef5 {[%clk 0:00:05]}  Re8 {[%clk 0:01:03]} 26. Rxe8 {[%clk 0:00:03]}  Kxe8 {[%clk 0:01:03]} 27. Nxd6+ {[%clk 0:00:04]}  cxd6 {[%clk 0:01:03]} 0-1


[Site "https://www.chess.com"]